Cogmind - Beta 10.2 @@@ ROGUE MODE // 2021.12.21 @ 16:30:56 Player: Malakyel Result: Destroyed by G-34 Mercenary with Small Laser Performance ------------- Evolutions (0) 0 Regions Visited (1) 200 Robots Destroyed (19) 95 Value Destroyed (511) 511 Prototype IDs (2) 40 Alien Tech Used (0) 0 Bonus (0) 0 TOTAL SCORE: 846 Bonus ------- None Cogmind --------- Core Integrity 0/250 Matter 500/500 Energy 246/250 System Corruption 2% Temperature Cool (14) Movement Treading (160) Location -10/Materials Parts ------- > --- POWER (1) -------- Ion Engine > --- PROPULSION (2) --- Light Treads Light Treads > --- UTILITY (2) ------ Large Storage Unit High-capacity Matter Pod > --- WEAPON (2) ------- (None) > --- INVENTORY (10) --- Light Ion Engine Light Ion Engine Light Ion Engine Light Ion Engine Light Ion Engine Light Ion Engine Small Storage Unit Small Matter Pod (50) Signal Interpreter Welding Torch Peak State ------------ > --- POWER ------------ Ion Engine > --- PROPULSION ------- Light Treads Light Treads > --- UTILITY ---------- Large Storage Unit High-capacity Matter Pod > --- WEAPON ----------- EM Pulse Gun Assault Rifle > --- INVENTORY -------- Light Ion Engine Light Ion Engine Light Ion Engine Light Ion Engine Light Ion Engine Light Ion Engine Small Storage Unit Small Matter Pod Small Laser Welding Torch [Rating: 8] Favorites ----------- Power Light Ion Engine Engine Light Ion Engine Propulsion Light Treads Treads Light Treads Utility Large Storage Unit Storage Large Storage Unit Weapon Small Laser Energy Gun Small Laser Ballistic Gun Assault Rifle Build | -11 -10 ------- Run | Scr Mat Slots Evolved . | . . Power . | . . Propulsion . | . . Utility . | . . Weapon . | . . Parts Attached 15 | 6 9 Power 4 | 1 3 Engine 4 | 1 3 Core . | . . Reactor . | . . Propulsion 4 | 2 2 Treads 4 | 2 2 Leg . | . . Wheel . | . . Hover . | . . Flight . | . . Utility 3 | 1 2 Device . | . . Storage 3 | 1 2 Processor . | . . Hackware . | . . Protection . | . . Artifact . | . . Weapon 4 | 2 2 Energy Gun 3 | 1 2 Energy Cannon . | . . Ballistic Gun 1 | 1 . Ballistic Cannon . | . . Launcher . | . . Special Weapon . | . . Impact Weapon . | . . Slashing Weapon . | . . Piercing Weapon . | . . Special Melee Weapon . | . . Unidentified Prototypes . | . . Parts Lost 4 | . 4 Power . | . . Propulsion . | . . Utility . | . . Weapon 4 | . 4 Highest Loss Streak 2 | . 2 Average Slot Usage (%) 92 | . 92 Engine 14 | . 14 Treads 27 | . 27 Storage 25 | . 25 Energy Gun 18 | . 18 Ballistic Gun 5 | . 5 Naked Turns . | . . Heaviest Build 29 | 11 29 Greatest Support 40 | 40 40 Greatest Overweight (x) 1 | . 1 Average Overweight (x) . | . . Largest Inventory Capacity 10 | 6 10 Average Capacity 9 | 5 9 Most Carried 10 | 4 10 Average Carried 7 | 1 8 Final Capacity 10 | 6 10 Final Carried 10 | 1 10 Class Distribution -------------------- 100% | Mutant Dominant Class ---------------- Mutant | -10/Materials Resources | -11 -10 ----------- Run | Scr Mat Matter Collected 677 | 216 461 Remotely . | . . Salvage Created 739 | . 739 Parts 34 | . 34 Haulers Intercepted . | . . Recyclers Shooed . | . . Parts Field Recycled . | . . Retrieved Matter . | . . Parts Self-Destructed . | . . Prevented . | . . Kills | -11 -10 ------- Run | Scr Mat Combat Hostiles Destroyed 13 | . 13 Guns 13 | . 13 Classes Destroyed 4 | . 4 Worker 2 | . 2 Recycler 1 | . 1 Watcher 3 | . 3 Grunt 13 | . 13 Best Kill Streak 4 | . 4 Combat Bots Only 3 | . 3 Max Kills in Single Turn 1 | . 1 Gunslinging . | . . Exploded . | . . Melee . | . . Uniques/NPCs Destroyed . | . . Combat | -11 -10 -------- Run | Scr Mat Damage Taken 1127 | . 1127 Core 252 | . 252 Absorbed by Shields . | . . Core Remaining (%) 100 | 100 . Volleys Fired 71 | . 71 Largest 2 | . 2 Hottest 80 | . 80 Shots Fired 115 | . 115 Gun 115 | . 115 Cannon . | . . Launcher . | . . Special . | . . Kinetic 29 | . 29 Thermal 62 | . 62 Explosive . | . . Electromagnetic 24 | . 24 Robot Hit Streak 8 | . 8 Robot Miss Streak 6 | . 6 Penetration Max . | . . Secondary Targets 1 | . 1 Max Gunslinging Chain 1 | . 1 Shots Hit Robots 67 | . 67 Core Hits 34 | . 34 Critical Hits . | . . Critical Kills . | . . Critical Parts Destroyed . | . . Melee Attacks . | . . Impact . | . . Slashing . | . . Piercing . | . . Sneak Attacks . | . . Combat Hostiles . | . . Follow-up Attacks . | . . Damage Inflicted 849 | . 849 Guns 849 | . 849 Cannons . | . . Explosions . | . . Melee . | . . Ramming . | . . Kinetic 223 | . 223 Thermal 385 | . 385 Explosive . | . . Electromagnetic 241 | . 241 Impact . | . . Slashing . | . . Piercing . | . . Highest Corruption 2 | . 2 Average Corruption 2 | . 2 Corruption Purged . | . . Effects 11 | . 11 Message Errors 4 | . 4 Heat Flow Errors 1 | . 1 Energy Discharges 4 | . 4 Data Loss (minor) 1 | . 1 Weapon Failures 1 | . 1 Overload Shots . | . . Overflow Damage . | . . Projectiles . | . . Explosions . | . . Melee . | . . Knockbacks . | . . Impact . | . . Kinetic . | . . Secondary . | . . Self-Inflicted Damage . | . . Shots . | . . Rammed . | . . Targets Rammed . | . . Kicked . | . . Crushed . | . . Highest Temperature 197 | . 197 Average Temperature 48 | . 48 Received Heat Transfer 624 | . 624 Siege Activations . | . . Robots Corrupted . | . . Combat Hostiles . | . . Parts Fried . | . . Impact Corruptions . | . . Robots Melted . | . . Combat Hostiles . | . . Parts Melted 2 | . 2 Heat Transferred 875 | . 875 Parts Sabotaged . | . . Parts Stolen . | . . Parts Stripped . | . . Power Chain Reactions . | . . Missiles Intercepted . | . . Alert | -11 -10 ------- Run | Scr Mat Peak Influence 147 | . 147 Initial . | . . Average 67 | . 72 Maximum Alert Level . | . . Low Security (%) 100 | 100 100 Level 1 . | . . Level 2 . | . . Level 3 . | . . Level 4 . | . . Level 5 . | . . High Security . | . . Max Security . | . . Squads Dispatched 5 | . 5 Investigation 3 | . 3 Extermination . | . . Reinforcement 2 | . 2 Assault . | . . Garrison . | . . Intercept . | . . Construction Impeded . | . . Haulers Reinforced . | . . Stealth | -11 -10 --------- Run | Scr Mat Distress Signals 2 | . 2 Communications Jammed . | . . Distress Signals . | . . Times Spotted 25 | . 25 Peak Tracking Total 4 | . 4 Tactical Retreats . | . . Traps | -11 -10 ------- Run | Scr Mat Traps Triggered 3 | . 3 Indirectly . | . . Trap Hack Attempts . | . . Triggered . | . . Disarmed . | . . Reprogrammed . | . . Reused . | . . Traps Extracted . | . . Installed . | . . Triggered . | . . Machines | -11 -10 ---------- Run | Scr Mat Machines Disabled 1 | . 1 Max in Single Turn 1 | . 1 Machines Sabotaged . | . . Garrisons Compromised . | . . Overloaded Fab Kills . | . . Fab Network Shutdowns . | . . Hacking | -11 -10 --------- Run | Scr Mat Machines Accessed 4 | . 4 Terminals 3 | . 3 Fabricators . | . . Repair Stations 1 | . 1 Recycling Units . | . . Scanalyzers . | . . Garrison Access . | . . Total Hacks 18 | . 18 Successful 17 | . 17 Failed 1 | . 1 Catastrophic . | . . Database Lockouts . | . . Manual . | . . Terminals 11 | . 11 Fabricators . | . . Repair Stations 7 | . 7 Recycling Units . | . . Scanalyzers . | . . Garrison Access . | . . Terminal Hacks 10 | . 10 Record 7 | . 7 Prototype ID Bank 1 | . 1 Dispatch Records 1 | . 1 Recall Investigation 1 | . 1 Fabricator Hacks . | . . Repair Station Hacks 7 | . 7 Scan Component 4 | . 4 Repair 3 | . 3 Recycling Unit Hacks . | . . Scanalyzer . | . . Garrison Access Hacks . | . . Unauthorized Hacks . | . . Terminals . | . . Fabricators . | . . Repair Stations . | . . Recycling Units . | . . Scanalyzers . | . . Garrison Access . | . . Data Cores Recovered . | . . Used . | . . Hacking Detections 3 | . 3 Full Trace Events 2 | . 2 Feedback Events . | . . Feedback Blocked . | . . Robot Schematics Acquired . | . . Robots Built . | . . Matter . | . . Time . | . . Total Robot Build Rating . | . . Part Schematics Acquired . | . . Parts Built . | . . Matter . | . . Time . | . . Total Part Build Rating . | . . Parts Repaired 3 | . 3 Time 78 | . 78 Parts Recycled . | . . Recycled Matter . | . . Retrieved Matter . | . . Retrieved Components . | . . Parts Scanalyzed . | . . Part Schematics Acquired . | . . Parts Damaged . | . . Bothacking | -11 -10 ------------ Run | Scr Mat Used RIF Installer . | . . Robots Hacked . | . . Non-combat . | . . Combat . | . . Robot Hacks Applied . | . . Relay Couplers Released . | . . Robots Rewired . | . . Allies Hacked . | . . Hacks Repelled . | . . Allies | -11 -10 -------- Run | Scr Mat Total Allies . | . . Largest Group . | . . Highest-Rated Group . | . . Highest-Rated Ally . | . . Total Orders . | . . Ally Attacks . | . . Total Damage . | . . Kills . | . . Allies Corrupted . | . . Allies Melted . | . . Intel | -11 -10 ------- Run | Scr Mat Robot Analysis Total . | . . Derelict Logs Recovered . | . . Drone Launches . | . . Drone Recoveries . | . . Exploration | -11 -10 ------------- Run | Scr Mat Turns Passed 1272 | 89 1183 Spaces Moved 654 | 51 603 Core 4 | 4 . Treads 650 | 47 603 Legs . | . . Wheels . | . . Hover . | . . Flight . | . . Fastest Speed 50 | 50 160 Average Speed 160 | 151 161 Slowest Speed 180 | 160 180 Overloaded Moves . | . . Propulsion Burnouts . | . . Robots Hopped . | . . Cave-ins Triggered . | . . Exploration Rate (%) 35 | 5 66 Regions Visited 1 Branch Regions . Pre-discovered Areas . | . . Known Exits Taken . | . . Unknown Exits Taken 1 | 1 . Scrap Searched . | . . Spaces Dug . | . . Terrain Destroyed . | . . Melee . | . . Projectile . | . . AOE . | . . Terrain Rammed . | . . Walls Destroyed . | . . Machines Disabled . | . . Actions | -11 -10 --------- Run | Scr Mat Total 758 | 63 695 Wait . | . . Move 653 | 50 603 Hop . | . . Pick Up 19 | 7 12 Fast Attach 3 | . 3 Attach 8 | 6 2 Detach . | . . Swap 4 | . 4 Drop . | . . Fire 71 | . 71 Melee . | . . Ram . | . . Kick . | . . Crush . | . . Escape Stasis . | . . Rewire . | . . Trap . | . . Miscellaneous . | . . Route ------- -11/Scrapyard -10/Materials (discovered 2 exits: [*Mat] / [*Min]) History --------- Turn | Location | Event 11 | -11/Scrapyard | Discovered new exit (range 16) 90 | -11/Scrapyard | Entered Materials 311 | -10/Materials | Build established: Mutant 492 | -10/Materials | Discovered new exit (range 10) 507 | -10/Materials | Core integrity fell below 50% 707 | -10/Materials | Repaired Lgt. Treads 755 | -10/Materials | Repaired Ion Engine 835 | -10/Materials | Repaired Lgt. Treads 1005 | -10/Materials | Discovered new exit (range 16) 1210 | -10/Materials | Core integrity fell below 20% 1273 | -10/Materials | Destroyed by G-34 Mercenary with Small Laser Last Messages --------------- 01189_ T-07 Excavator is excavating. 01191_ K-01 Serf collects debris. 01193_ T-07 Excavator is excavating. 01193_ G-34 Mercenary destroyed. 01195_ K-01 Serf collects debris. 01197_ T-07 Excavator is excavating. 01198_ U-05 Engineer lays Concrete. 01199_ K-01 Serf collects debris. 01199_ G-34 Mercenary destroyed. 01202_ K-01 Serf collects debris. 01203_ U-05 Engineer lays Concrete. 01206_ K-01 Serf destroyed. 01206_ T-07 Excavator is excavating. 01206_ U-05 Engineer lays Concrete. 01208_ Sml. Laser destroyed. 01210_ T-07 Excavator is excavating. 01216_ R-06 Scavenger collects Heat Sink. 01217_ U-05 Engineer lays Concrete. 01220_ Sml. Laser destroyed. 01247_ K-01 Serf cleans the Pressure Siphon. Map ----- +----------------------------------------------------+ | " #??# """ + !! #### #?????????????????? | | #??# # !! #?????????????????? | | ############## ! #??????????????? ?? | | #??????????????? ?? | | #???????????#### ## | | #??????????? | | +############ #??????????? | | #??????# % #### #??????????? " | | #?????####+####### #????????????????# | | """ #?????# =## #????????????????# | | """" #?????# ## #????????????????# | | """" #?????# ## #????????????????# | | """" #?????# """ """ ## #????????????????#^ % | | """ #?????# """ """ ## ####?????????????# %! | | #?????# """ """ # """#?????????????? %%! | | ######?????# # "#????####+#????# * | | ???????????# # !"#???? ????# | | ???????????########### < ""#???? ??# != | | ?????????????????????# o !"#???? ???# != | | ?????????????????????# "#???# ????# ! | | ######???????????????# " "#???# ?????# #### | | #???????????????## ####???# ??????# #??? | | #????????????????# #??????# ???????# #??? | | #??????########### #??????# ????????# #??? | | #??????# ## #??????#+#?########/#??? | | * #??????# ## @##???### ### #??? | | * #??????# # ##### # """ #??? | | * #??????# # # "T" #??? | | #??????# + g + #??? | | ######??????# # """ # #??? | | #???????# # "R" # # """ #??? | | "" #???????# # g" " ####### """ #??? | | "" #???????# # #?????# """ #??? | | "" #?????############ #?????# #??? | | "" #?????# #????# #?????##########??? | | "" #?????# #????# """% #??########???????? | | "" #?????? #????# """ #??# T #???????? | | "" #???????? ###### """ #??# = #???????? | | #??????#+##+## """ %#??# """#???????# | | #####??????# #??# """#??????## | | ???????????# ##### #??# """#??????#! | | ?????????? ??#####+######## #??# #??????#! | | ???????? ???# #??# #######+########## | | ??????? ?????# #??# | | ?????# ??????# """ #??# | | ?????# ???????# """"" #??# % | | ??????????????# """"" #######+################## | | ??????????????# """"" # #????????????# | | ??????????????# """ # #????????????# | | ??????????????# # #????????????# | +----------------------------------------------------+ Best States ------------- Heat Dissipation 25 Energy Generation 10 Energy Capacity 250 Matter Stores 500 Matter Capacity 500 Sight Range 16 Terrain Scan Density 10 Evasion (%) 40 Recoil Reduction 2 Item Schematics ----------------- None Robot Schematics ------------------ None Fabricated ------------ Nothing Alien Tech Used ----------------- None Achievements -------------- None Challenges ------------ None Game ------ Seed CloakingMakeshiftWheel Manual? 0 Play Time 00:27:53 Cumulative 2.3 hours Start 2021.12.21 @ 15:55:09 End 2021.12.21 @ 16:30:56 Sessions 1 Manual Loads 0 Difficulty Rogue Special Mode None Game No. 3 Rogue 3 Adventurer 0 Explorer 0 Win Type - Total 0 Types 0/0/0/0/0/0/0/0/0 Lore% 1 Gallery% 5 Achievement% 4 Wizard Run 0 Options --------- ASCII 0 Keyboard 0 Movement Mouse Keybinds 0 Fullscreen 2 Font 18/SmallcapsGlow Map View 76x50 Tactical HUD 1 Map Filters NONE Filters NONE Steam 1 RUN: 793e588f-78a1-48b0-8075-d3e60d197f32